[Event "ONJK DE"]
[Site "Enschede, Netherlands"]
[Date "2022.08.09"]
[Round "4.6"]
[White "Katpatal, Akshaj (E)"]
[Black "Peeters, Paul (E)"]
[Result "1-0"]
[TimeControl "40min + 30sec/move"]
[WhiteElo "1874"]
[BlackElo "1138"]

1. e4 {[%clk 00:40:53]} {[%emt 00:00:04]} e5 {[%emt 00:00:32]} 2. Nf3 {[%clk
00:41:12]} {[%emt 00:00:06]} Nc6 {[%clk 00:40:49]} {[%emt 00:00:16]} 3. Bc4
{[%clk 00:41:35]} {[%emt 00:00:07]} Bc5 {[%clk 00:41:07]} {[%emt 00:00:12]} 4.
d3 {[%clk 00:41:49]} {[%emt 00:00:16]} Nf6 {[%clk 00:41:05]} {[%emt 00:00:32]}
5. Nc3 {[%clk 00:42:11]} {[%emt 00:00:08]} d6 {[%clk 00:40:52]} {[%emt
00:00:44]} 6. Bg5 {[%clk 00:42:34]} {[%emt 00:00:06]} h6 {[%clk 00:41:07]}
{[%emt 00:00:13]} 7. Be3 {[%clk 00:43:01]} {[%emt 00:00:05]} Bb6 {[%clk
00:41:09]} {[%emt 00:00:28]} 8. Qd2 {[%clk 00:43:04]} {[%emt 00:00:26]} a6
{[%clk 00:41:00]} {[%emt 00:00:40]} 9. d4 {[%clk 00:43:11]} {[%emt 00:00:23]}
exd4 {[%clk 00:40:57]} {[%emt 00:00:32]} 10. Nxd4 {[%clk 00:43:35]} {[%emt
00:00:07]} Nxd4 {[%clk 00:40:25]} {[%emt 00:01:02]} 11. Bxd4 {[%clk 00:43:58]}
{[%emt 00:00:06]} Ba5 {[%clk 00:39:48]} {[%emt 00:01:08]} 12. f3 {[%clk
00:42:31]} {[%emt 00:01:57]} O-O {[%clk 00:39:57]} {[%emt 00:00:21]} 13. O-O
{[%clk 00:42:35]} {[%emt 00:00:22]} c5 {[%clk 00:39:45]} {[%emt 00:00:46]} 14.
Bxf6 {[%clk 00:41:30]} {[%emt 00:01:35]} Qxf6 {[%clk 00:40:06]} {[%emt
00:00:10]} 15. Rad1 {[%clk 00:41:32]} {[%emt 00:00:28]} Bxc3 {[%clk 00:39:27]}
{[%emt 00:01:09]} 16. Qxc3 {[%clk 00:41:50]} {[%emt 00:00:11]} Qxc3 {[%clk
00:38:54]} {[%emt 00:01:04]} 17. bxc3 {[%clk 00:42:13]} {[%emt 00:00:06]} b5
{[%clk 00:38:38]} {[%emt 00:00:46]} 18. Be2 {[%clk 00:42:34]} {[%emt 00:00:08]}
Rd8 {[%clk 00:38:54]} {[%emt 00:00:15]} 19. c4 {[%clk 00:42:40]} {[%emt
00:00:24]} b4 {[%clk 00:38:57]} {[%emt 00:00:27]} 20. e5 {[%clk 00:42:25]}
{[%emt 00:00:45]} Bf5 {[%clk 00:39:14]} {[%emt 00:00:13]} 21. exd6 {[%clk
00:42:31]} {[%emt 00:00:25]} Bxc2 {[%clk 00:39:25]} {[%emt 00:00:18]} 22. Rd5
{[%clk 00:42:09]} {[%emt 00:00:52]} Rac8 {[%clk 00:39:32]} {[%emt 00:00:24]} 23.
Rc1 {[%clk 00:42:20]} {[%emt 00:00:17]} Bg6 {[%clk 00:39:21]} {[%emt 00:00:41]}
24. Rcd1 {[%clk 00:41:41]} {[%emt 00:01:10]} Rd7 {[%clk 00:39:03]} {[%emt
00:00:48]} 25. f4 {[%clk 00:41:40]} {[%emt 00:00:31]} Be4 {[%clk 00:38:48]}
{[%emt 00:00:44]} 26. Re5 {[%clk 00:42:01]} {[%emt 00:00:09]} f5 {[%clk
00:38:33]} {[%emt 00:00:46]} 27. g4 {[%clk 00:41:52]} {[%emt 00:00:39]} g6
{[%clk 00:38:53]} {[%emt 00:00:10]} 28. gxf5 {[%clk 00:41:49]} {[%emt
00:00:33]} Bxf5 {[%clk 00:39:06]} {[%emt 00:00:17]} 29. Bf3 {[%clk 00:40:46]}
{[%emt 00:01:34]} Rcd8 {[%clk 00:38:10]} {[%emt 00:01:26]} 30. Red5 {[%clk
00:39:01]} {[%emt 00:02:14]} Bc2 {[%clk 00:37:04]} {[%emt 00:01:36]} 31. R1d2
{[%clk 00:39:24]} {[%emt 00:00:07]} Bf5 {[%clk 00:36:21]} {[%emt 00:01:13]} 32.
Bd1 {[%clk 00:37:44]} {[%emt 00:02:10]} Be6 {[%clk 00:34:56]} {[%emt 00:01:55]}
33. Rxc5 {[%clk 00:38:08]} {[%emt 00:00:06]} Rxd6 {[%clk 00:35:05]} {[%emt
00:00:21]} 34. Rxd6 {[%clk 00:38:29]} {[%emt 00:00:09]} Rxd6 {[%clk 00:35:28]}
{[%emt 00:00:07]} 35. Bc2 {[%clk 00:38:45]} {[%emt 00:00:14]} Kg7 {[%clk
00:35:37]} {[%emt 00:00:21]} 36. Rc7+ {[%clk 00:38:41]} {[%emt 00:00:34]} Bf7
{[%clk 00:35:59]} {[%emt 00:00:09]} 37. f5 {[%clk 00:36:45]} {[%emt 00:02:25]}
gxf5 {[%clk 00:35:45]} {[%emt 00:00:44]} 38. Bxf5 {[%clk 00:37:08]} {[%emt
00:00:08]} Rd1+ {[%clk 00:36:03]} {[%emt 00:00:12]} 39. Kf2 {[%clk 00:37:19]}
{[%emt 00:00:18]} Rd6 {[%clk 00:36:13]} {[%emt 00:00:19]} 40. Be4 {[%clk
00:36:57]} {[%emt 00:00:53]} Kf6 {[%clk 00:36:00]} {[%emt 00:00:41]} 41. Ke3
{[%clk 00:36:49]} {[%emt 00:00:39]} Re6 {[%emt 00:00:52]} 42. Kd4 {[%clk
00:36:33]} {[%emt 00:00:15]} Bg6 {[%clk 00:36:21]} {[%emt 00:00:19]} 43. Bxg6
{[%clk 00:35:58]} {[%emt 00:01:05]} Kxg6 {[%clk 00:36:39]} {[%emt 00:00:12]} 44.
Kc5 {[%clk 00:36:22]} {[%emt 00:00:06]} a5 {[%clk 00:36:55]} {[%emt 00:00:14]}
45. Ra7 {[%clk 00:36:19]} {[%emt 00:00:33]} Re5+ {[%clk 00:37:14]} {[%emt
00:00:10]} 46. Kd4 {[%clk 00:36:41]} {[%emt 00:00:09]} Rf5 {[%clk 00:35:58]}
{[%emt 00:01:47]} 47. c5 {[%clk 00:36:58]} {[%emt 00:00:12]} Rf2 {[%clk
00:35:48]} {[%emt 00:00:40]} 48. Rxa5 {[%clk 00:36:44]} {[%emt 00:00:45]} Rxh2
{[%clk 00:35:59]} {[%emt 00:00:18]} 49. c6 {[%clk 00:37:04]} {[%emt 00:00:11]}
Rc2 {[%clk 00:36:14]} {[%emt 00:00:13]} 50. Rc5 {[%clk 00:37:23]} {[%emt
00:00:13]} Rd2+ {[%clk 00:36:34]} {[%emt 00:00:09]} 51. Ke5 {[%clk 00:37:15]}
{[%emt 00:00:39]} Re2+ {[%clk 00:32:41]} {[%emt 00:04:23]} 52. Kd6 {[%clk
00:37:31]} {[%emt 00:00:14]} Rf2 {[%clk 00:32:46]} {[%emt 00:00:25]} 53. c7
{[%clk 00:37:51]} {[%emt 00:00:11]} Rf6+ {[%clk 00:32:55]} {[%emt 00:00:20]} 54.
Ke5 {[%clk 00:38:00]} {[%emt 00:00:21]} Rf5+ {[%clk 00:33:08]} {[%emt
00:00:17]} 55. Kd4 {[%clk 00:38:25]} {[%emt 00:00:05]} Rf4+ {[%clk 00:33:31]}
{[%emt 00:00:07]} 56. Ke3 {[%clk 00:38:50]} {[%emt 00:00:05]} Rf8 {[%clk
00:31:13]} {[%emt 00:02:48]} 57. c8=Q {[%emt 00:00:42]} Rxc8 {[%emt 00:00:02]}
58. Rxc8 {[%clk 00:38:19]} {[%emt 00:00:17]} h5 {[%clk 00:31:31]} {[%emt
00:00:13]} 59. Rc4 {[%clk 00:38:43]} {[%emt 00:00:05]} Kg5 {[%clk 00:31:56]}
{[%emt 00:00:06]} 60. Rxb4 {[%clk 00:39:08]} {[%emt 00:00:04]} h4 {[%clk
00:32:19]} {[%emt 00:00:08]} 61. Rxh4 {[%clk 00:39:31]} {[%emt 00:00:06]} Kxh4
{[%clk 00:32:46]} {[%emt 00:00:04]} 62. a4 {[%clk 00:39:50]} {[%emt 00:00:10]}
Kg5 {[%clk 00:33:11]} {[%emt 00:00:05]} 63. a5 {[%clk 00:40:17]} {[%emt
00:00:03]} Kf6 {[%clk 00:33:28]} {[%emt 00:00:13]} 64. a6 {[%clk 00:40:38]}
{[%emt 00:00:10]} Ke5 {[%emt 00:00:07]} 65. a7 {[%clk 00:41:01]} {[%emt
00:00:05]} Ke6 {[%clk 00:34:15]} {[%emt 00:00:07]} 66. a8=Q {[%clk 00:41:25]}
{[%emt 00:00:06]} Kd7 {[%clk 00:34:38]} {[%emt 00:00:08]} 67. Qa6 {[%clk
00:41:46]} {[%emt 00:00:08]} Kd8 {[%clk 00:35:01]} {[%emt 00:00:08]} 68. Qb7
{[%clk 00:42:11]} {[%emt 00:00:04]} Ke8 {[%emt 00:00:03]} 69. Qc7 {[%clk
00:42:37]} {[%emt 00:00:04]} Kf8 {[%clk 00:35:35]} {[%emt 00:00:23]} 70. Qd7
{[%clk 00:43:03]} {[%emt 00:00:04]} Kg8 {[%clk 00:35:56]} {[%emt 00:00:09]} 71.
Ke4 {[%clk 00:43:31]} {[%emt 00:00:02]} Kh8 {[%clk 00:35:44]} {[%emt 00:00:42]}
72. Ke5 {[%clk 00:43:56]} {[%emt 00:00:05]} Kg8 {[%clk 00:36:04]} {[%emt
00:00:10]} 73. Kf6 {[%clk 00:44:20]} {[%emt 00:00:05]} Kh8 {[%clk 00:36:26]}
{[%emt 00:00:09]} 74. Qg7# {[%clk 00:44:11]} {[%emt 00:00:08]} 1-0

[Event "ONJK DE"]
[Site "Enschede, Netherlands"]
[Date "2022.08.09"]
[Round "4.7"]
[White "Leenen, Boyd (E)"]
[Black "Thijssen, Freek (E)"]
[Result "1/2-1/2"]
[TimeControl "40min + 30sec/move"]
[WhiteElo "1417"]
[BlackElo "1484"]

1. e4 {[%clk 00:40:59]} {[%emt 00:00:01]} e5 {[%clk 00:40:49]} {[%emt
00:00:12]} 2. Nf3 {[%clk 00:41:25]} {[%emt 00:00:04]} Nc6 {[%clk 00:41:11]}
{[%emt 00:00:08]} 3. Bc4 {[%clk 00:41:50]} {[%emt 00:00:04]} Bc5 {[%clk
00:41:35]} {[%emt 00:00:06]} 4. Nc3 {[%clk 00:42:14]} {[%emt 00:00:06]} Nf6
{[%clk 00:41:57]} {[%emt 00:00:08]} 5. d3 {[%clk 00:42:39]} {[%emt 00:00:05]}
h6 {[%clk 00:42:16]} {[%emt 00:00:11]} 6. Be3 {[%clk 00:43:05]} {[%emt
00:00:04]} Bb6 {[%clk 00:42:38]} {[%emt 00:00:08]} 7. h3 {[%clk 00:43:30]}
{[%emt 00:00:05]} d6 {[%clk 00:43:02]} {[%emt 00:00:06]} 8. Bb3 {[%clk
00:43:56]} {[%emt 00:00:05]} Be6 {[%clk 00:43:16]} {[%emt 00:00:16]} 9. O-O
{[%clk 00:44:18]} {[%emt 00:00:08]} O-O {[%clk 00:43:39]} {[%emt 00:00:07]} 10.
Re1 {[%clk 00:44:47]} {[%emt 00:00:01]} Qd7 {[%clk 00:44:01]} {[%emt 00:00:09]}
11. Qd2 {[%clk 00:45:07]} {[%emt 00:00:10]} Rfe8 {[%clk 00:44:22]} {[%emt
00:00:09]} 12. Rad1 {[%clk 00:45:33]} {[%emt 00:00:04]} Rad8 {[%clk 00:44:30]}
{[%emt 00:00:22]} 13. d4 {[%clk 00:45:55]} {[%emt 00:00:08]} exd4 {[%clk
00:44:47]} {[%emt 00:00:13]} 14. Bxd4 {[%clk 00:46:20]} {[%emt 00:00:05]} Nxd4
{[%clk 00:44:52]} {[%emt 00:00:25]} 15. Nxd4 {[%clk 00:46:45]} {[%emt
00:00:05]} Bxd4 {[%clk 00:44:49]} {[%emt 00:00:34]} 16. Qxd4 {[%clk 00:47:08]}
{[%emt 00:00:07]} Bxb3 {[%clk 00:45:13]} {[%emt 00:00:05]} 17. axb3 {[%emt
00:00:03]} b6 {[%emt 00:00:33]} 18. Nd5 {[%clk 00:46:44]} {[%emt 00:00:18]}
Nxd5 {[%clk 00:45:21]} {[%emt 00:00:22]} 19. Qxd5 {[%clk 00:47:04]} {[%emt
00:00:10]} Re5 {[%clk 00:45:39]} {[%emt 00:00:13]} 20. Qd4 {[%clk 00:47:03]}
{[%emt 00:00:28]} Rde8 {[%clk 00:44:59]} {[%emt 00:01:12]} 21. Rd3 {[%clk
00:46:31]} {[%emt 00:01:02]} f5 {[%clk 00:44:18]} {[%emt 00:01:11]} 22. Rde3
{[%clk 00:46:34]} {[%emt 00:00:27]} fxe4 {[%clk 00:29:58]} {[%emt 00:14:50]} 23.
Rxe4 {[%clk 00:46:18]} {[%emt 00:00:47]} Qf5 {[%clk 00:28:02]} {[%emt
00:02:25]} 24. Rxe5 {[%clk 00:46:28]} {[%emt 00:00:20]} Rxe5 {[%clk 00:28:21]}
{[%emt 00:00:10]} 25. Rxe5 {[%clk 00:46:52]} {[%emt 00:00:07]} Qxe5 {[%clk
00:28:30]} {[%emt 00:00:21]} 26. Qc4+ {[%clk 00:46:48]} {[%emt 00:00:33]} d5
{[%clk 00:28:53]} {[%emt 00:00:08]} 27. Qc3 {[%clk 00:47:08]} {[%emt 00:00:10]}
Qxc3 {[%clk 00:29:08]} {[%emt 00:00:15]} 28. bxc3 {[%clk 00:47:30]} {[%emt
00:00:08]} a5 {[%clk 00:29:29]} {[%emt 00:00:09]} 29. Kf1 {[%clk 00:47:52]}
{[%emt 00:00:08]} b5 {[%clk 00:29:38]} {[%emt 00:00:22]} 30. Ke1 {[%clk
00:48:19]} {[%emt 00:00:03]} c5 {[%clk 00:29:29]} {[%emt 00:00:39]} 31. c4
{[%clk 00:48:27]} {[%emt 00:00:21]} dxc4 {[%clk 00:29:36]} {[%emt 00:00:22]} 32.
bxc4 {[%clk 00:48:56]} {[%emt 00:00:02]} b4 {[%clk 00:29:32]} {[%emt 00:00:34]}
33. Kd1 {[%clk 00:49:04]} {[%emt 00:00:22]} a4 {[%clk 00:29:47]} {[%emt
00:00:15]} 34. Kc1 {[%clk 00:49:33]} Kf7 {[%clk 00:29:55]} {[%emt 00:00:22]} 35.
f4 {[%clk 00:46:06]} {[%emt 00:03:58]} h5 {[%clk 00:24:14]} {[%emt 00:06:10]}
36. g4 {[%clk 00:46:03]} {[%emt 00:00:33]} Kf6 {[%clk 00:21:55]} {[%emt
00:02:49]} 37. Kb2 {[%clk 00:46:02]} {[%emt 00:00:31]} Ke6 {[%clk 00:21:24]}
{[%emt 00:01:01]} 38. Ka2 {[%clk 00:45:48]} {[%emt 00:00:44]} Kd6 {[%clk
00:18:53]} {[%emt 00:03:01]} 39. Kb2 {[%clk 00:45:22]} {[%emt 00:00:56]} Ke6
{[%clk 00:16:52]} {[%emt 00:02:31]} 40. Ka2 {[%clk 00:45:21]} {[%emt 00:00:31]}
g5 {[%clk 00:17:01]} {[%emt 00:00:22]} 41. f5+ {[%clk 00:45:36]} {[%emt
00:00:25]} Kd7 {[%clk 00:16:57]} 1/2-1/2

[Event "ONJK DE"]
[Site "Enschede, Netherlands"]
[Date "2022.08.09"]
[Round "4.8"]
[White "Koppenens, Oscar (E)"]
[Black "Rudolph, Simon (E)"]
[Result "1-0"]
[TimeControl "40min + 30sec/move"]
[WhiteElo "1266"]
[BlackElo "996"]

1. e4 {[%clk 00:40:58]} {[%emt 00:00:02]} Nf6 {[%clk 00:40:55]} {[%emt
00:00:05]} 2. e5 {[%clk 00:41:08]} {[%emt 00:00:20]} Nd5 {[%clk 00:41:21]}
{[%emt 00:00:04]} 3. c4 {[%clk 00:41:34]} {[%emt 00:00:04]} Nb6 {[%clk
00:41:44]} {[%emt 00:00:06]} 4. d4 {[%clk 00:42:01]} {[%emt 00:00:03]} d6
{[%clk 00:42:08]} {[%emt 00:00:07]} 5. f4 {[%emt 00:00:09]} dxe5 {[%emt
00:00:15]} 6. fxe5 {[%clk 00:42:00]} {[%emt 00:00:08]} Bf5 {[%clk 00:42:33]}
{[%emt 00:00:05]} 7. Nf3 {[%clk 00:41:44]} {[%emt 00:00:46]} e6 {[%clk
00:42:51]} {[%emt 00:00:11]} 8. Nc3 {[%clk 00:42:04]} {[%emt 00:00:10]} Nc6
{[%clk 00:42:46]} {[%emt 00:00:35]} 9. Be3 {[%clk 00:42:02]} {[%emt 00:00:32]}
Be7 {[%clk 00:42:53]} {[%emt 00:00:23]} 10. Be2 {[%clk 00:40:36]} {[%emt
00:01:57]} O-O {[%clk 00:43:03]} {[%emt 00:00:17]} 11. O-O {[%clk 00:40:56]}
{[%emt 00:00:12]} f6 {[%emt 00:02:10]} 12. Qb3 {[%clk 00:40:12]} {[%emt
00:00:02]} Na5 {[%clk 00:43:41]} {[%emt 00:00:13]} 13. Qd1 {[%clk 00:40:21]}
{[%emt 00:00:22]} Naxc4 {[%clk 00:43:57]} {[%emt 00:00:13]} 14. Qc1 {[%clk
00:40:36]} {[%emt 00:00:15]} Nxe3 {[%clk 00:44:00]} {[%emt 00:00:27]} 15. Qxe3
{[%clk 00:41:00]} {[%emt 00:00:06]} fxe5 {[%clk 00:44:20]} {[%emt 00:00:10]} 16.
Nxe5 {[%clk 00:41:13]} {[%emt 00:00:17]} Rc8 {[%clk 00:43:58]} {[%emt
00:00:52]} 17. g4 {[%clk 00:40:30]} {[%emt 00:01:14]} Bg6 {[%clk 00:43:48]}
{[%emt 00:00:39]} 18. Rxf8+ {[%clk 00:40:34]} {[%emt 00:00:26]} Bxf8 {[%clk
00:42:57]} {[%emt 00:01:21]} 19. Nxg6 {[%clk 00:40:58]} {[%emt 00:00:06]} hxg6
{[%clk 00:43:11]} {[%emt 00:00:16]} 20. Qxe6+ {[%clk 00:41:10]} {[%emt
00:00:19]} Kh8 {[%clk 00:43:28]} {[%emt 00:00:12]} 21. Rd1 {[%clk 00:41:10]}
{[%emt 00:00:31]} Qf6 {[%clk 00:43:10]} {[%emt 00:00:48]} 22. Qe3 {[%clk
00:40:52]} {[%emt 00:00:45]} c5 {[%clk 00:43:19]} {[%emt 00:00:19]} 23. Ne4
{[%clk 00:39:52]} {[%emt 00:01:34]} Qe6 {[%clk 00:42:56]} {[%emt 00:00:54]} 24.
Qh3+ {[%clk 00:39:56]} {[%emt 00:00:25]} Kg8 {[%clk 00:42:38]} {[%emt
00:00:37]} 25. Ng5 {[%clk 00:40:21]} {[%emt 00:00:17]} Qe3+ {[%clk 00:42:14]}
{[%emt 00:00:54]} 26. Qxe3 {[%clk 00:40:44]} {[%emt 00:00:07]} cxd4 {[%clk
00:42:36]} {[%emt 00:00:08]} 27. Qb3+ {[%clk 00:40:55]} {[%emt 00:00:19]} Nd5
{[%clk 00:42:39]} {[%emt 00:00:27]} 28. Qxd5+ {[%clk 00:41:18]} {[%emt
00:00:07]} Kh8 {[%clk 00:43:02]} {[%emt 00:00:07]} 29. Rd3 {[%clk 00:41:21]}
{[%emt 00:00:27]} Rc1+ {[%clk 00:42:54]} {[%emt 00:00:38]} 30. Kf2 {[%clk
00:41:43]} {[%emt 00:00:08]} Rc3 {[%clk 00:43:07]} {[%emt 00:00:18]} 31. bxc3
{[%clk 00:42:05]} {[%emt 00:00:07]} 1-0

[Event "ONJK DE"]
[Site "Enschede, Netherlands"]
[Date "2022.08.10"]
[Round "5.1"]
[White "Groenewoud, Joel"]
[Black "Declerck, Adriaan"]
[Result "1-0"]
[TimeControl "40min + 30sec/move"]
[WhiteElo "1497"]
[BlackElo "1371"]

1. e4 {[%clk 00:40:59]} e6 {[%clk 00:40:56]} {[%emt 00:00:03]} 2. c4 {[%clk
00:41:26]} {[%emt 00:00:04]} d5 {[%clk 00:41:22]} {[%emt 00:00:04]} 3. cxd5
{[%clk 00:41:50]} {[%emt 00:00:07]} exd5 {[%clk 00:41:47]} {[%emt 00:00:05]} 4.
Qb3 {[%clk 00:42:11]} {[%emt 00:00:08]} dxe4 {[%clk 00:42:12]} {[%emt
00:00:05]} 5. Bc4 {[%clk 00:42:30]} {[%emt 00:00:11]} Qe7 {[%clk 00:42:39]}
{[%emt 00:00:04]} 6. Nc3 {[%clk 00:42:47]} {[%emt 00:00:13]} Nd7 {[%clk
00:42:58]} {[%emt 00:00:10]} 7. Nd5 {[%clk 00:42:32]} {[%emt 00:00:45]} Qe5
{[%clk 00:43:23]} {[%emt 00:00:05]} 8. d4 {[%clk 00:41:51]} {[%emt 00:01:11]}
exd3+ {[%clk 00:43:49]} {[%emt 00:00:04]} 9. Be3 {[%clk 00:41:28]} {[%emt
00:00:53]} Nc5 {[%clk 00:43:11]} {[%emt 00:01:08]} 10. Qc3 {[%clk 00:31:16]}
{[%emt 00:10:43]} d2+ {[%clk 00:37:55]} {[%emt 00:05:46]} 11. Qxd2 {[%clk
00:28:30]} {[%emt 00:03:16]} Ne6 {[%clk 00:33:20]} {[%emt 00:05:04]} 12. Nf3
{[%clk 00:25:49]} {[%emt 00:03:11]} Qd6 {[%clk 00:32:26]} {[%emt 00:01:25]} 13.
O-O-O {[%clk 00:20:06]} {[%emt 00:06:13]} c6 {[%clk 00:25:39]} {[%emt
00:07:17]} 14. Qc2 {[%clk 00:11:31]} {[%emt 00:09:04]} Qb8 {[%clk 00:17:51]}
{[%emt 00:08:18]} 15. Rhe1 {[%clk 00:05:23]} {[%emt 00:06:37]} Bd6 {[%clk
00:14:03]} {[%emt 00:04:18]} 16. Bd4 {[%clk 00:01:53]} {[%emt 00:04:01]} Ne7
{[%clk 00:13:12]} {[%emt 00:01:20]} 17. Nxe7 {[%clk 00:00:40]} {[%emt
00:01:44]} Bxe7 {[%clk 00:13:37]} {[%emt 00:00:05]} 18. Be5 {[%clk 00:00:51]}
{[%emt 00:00:19]} Nc7 {[%emt 00:00:30]} 19. Bd6 {[%clk 00:00:47]} {[%emt
00:00:33]} Be6 {[%clk 00:13:56]} {[%emt 00:00:12]} 20. Bxe6 {[%clk 00:00:44]}
{[%emt 00:00:33]} Bxd6 {[%clk 00:13:15]} {[%emt 00:01:12]} 21. Bxf7+ {[%clk
00:00:39]} {[%emt 00:00:34]} Kxf7 {[%clk 00:10:39]} {[%emt 00:03:06]} 22. Ng5+
{[%clk 00:00:43]} {[%emt 00:00:25]} Kf6 {[%clk 00:10:31]} {[%emt 00:00:39]} 23.
Rxd6+ {[%clk 00:01:00]} {[%emt 00:00:13]} Kxg5 {[%clk 00:10:45]} {[%emt
00:00:16]} 24. Re5+ {[%clk 00:01:20]} {[%emt 00:00:10]} Kf4 {[%clk 00:10:41]}
{[%emt 00:00:34]} 25. Qe4# {[%clk 00:01:41]} {[%emt 00:00:09]} 1-0

[Event "ONJK DE"]
[Site "Enschede, Netherlands"]
[Date "2022.08.10"]
[Round "5.2"]
[White "Rooijakkers, Liam"]
[Black "Terlouw, Wouter"]
[Result "0-1"]
[TimeControl "40min + 30sec/move"]
[WhiteElo "1266"]
[BlackElo "1720"]

1. e4 {[%clk 00:40:58]} {[%emt 00:00:02]} c5 {[%clk 00:40:53]} {[%emt
00:00:07]} 2. Nc3 {[%clk 00:41:21]} {[%emt 00:00:07]} Nc6 {[%clk 00:41:10]}
{[%emt 00:00:13]} 3. f4 {[%clk 00:41:42]} {[%emt 00:00:09]} g6 {[%clk
00:41:30]} {[%emt 00:00:10]} 4. Nf3 {[%clk 00:42:02]} {[%emt 00:00:11]} Bg7
{[%clk 00:41:50]} {[%emt 00:00:09]} 5. Bc4 {[%clk 00:42:17]} {[%emt 00:00:15]}
e6 {[%clk 00:42:08]} {[%emt 00:00:12]} 6. d3 {[%clk 00:42:24]} {[%emt
00:00:23]} Nge7 {[%clk 00:42:29]} {[%emt 00:00:09]} 7. O-O {[%clk 00:42:11]}
{[%emt 00:00:43]} O-O {[%clk 00:42:37]} {[%emt 00:00:22]} 8. Qe1 {[%clk
00:42:20]} {[%emt 00:00:20]} d5 {[%clk 00:42:56]} {[%emt 00:00:11]} 9. Bb3
{[%clk 00:42:30]} {[%emt 00:00:21]} Nd4 {[%clk 00:41:48]} {[%emt 00:01:38]} 10.
Qh4 {[%clk 00:42:11]} {[%emt 00:00:47]} dxe4 {[%clk 00:39:15]} {[%emt
00:03:05]} 11. dxe4 {[%clk 00:40:40]} {[%emt 00:02:01]} Nec6 {[%clk 00:38:40]}
{[%emt 00:01:02]} 12. Qxd8 {[%clk 00:40:14]} {[%emt 00:00:59]} Rxd8 {[%clk
00:38:49]} {[%emt 00:00:21]} 13. Be3 {[%clk 00:38:34]} {[%emt 00:02:11]} b6
{[%clk 00:36:50]} {[%emt 00:02:28]} 14. e5 {[%clk 00:36:22]} {[%emt 00:02:43]}
Bb7 {[%clk 00:35:19]} {[%emt 00:01:56]} 15. Bxd4 {[%clk 00:32:21]} {[%emt
00:04:34]} Nxd4 {[%clk 00:35:19]} {[%emt 00:00:31]} 16. Nxd4 {[%clk 00:31:29]}
{[%emt 00:01:22]} Rxd4 {[%clk 00:33:35]} {[%emt 00:02:14]} 17. Rad1 {[%clk
00:31:12]} {[%emt 00:00:47]} Ba6 {[%clk 00:28:11]} {[%emt 00:05:50]} 18. Rfe1
{[%clk 00:25:04]} {[%emt 00:06:42]} Rxf4 {[%clk 00:25:42]} {[%emt 00:02:58]} 19.
Rd7 {[%clk 00:23:51]} {[%emt 00:01:45]} Bxe5 {[%clk 00:24:24]} {[%emt
00:01:48]} 20. g3 {[%clk 00:22:56]} {[%emt 00:01:24]} Bd4+ {[%clk 00:23:29]}
{[%emt 00:01:24]} 21. Kg2 {[%clk 00:23:07]} {[%emt 00:00:18]} Rf2+ {[%clk
00:22:43]} {[%emt 00:01:18]} 22. Kh1 {[%clk 00:22:09]} {[%emt 00:01:27]} Bxc3
{[%clk 00:21:49]} {[%emt 00:01:25]} 23. bxc3 {[%clk 00:22:24]} {[%emt
00:00:15]} c4 {[%clk 00:21:53]} {[%emt 00:00:26]} 24. Ba4 {[%clk 00:22:38]}
{[%emt 00:00:16]} b5 {[%clk 00:22:04]} {[%emt 00:00:20]} 25. Rd6 {[%clk
00:22:50]} {[%emt 00:00:17]} Bb7+ {[%clk 00:22:18]} {[%emt 00:00:15]} 26. Kg1
{[%clk 00:22:54]} {[%emt 00:00:27]} Rf5 {[%clk 00:21:22]} {[%emt 00:01:21]} 27.
Rd7 {[%clk 00:22:56]} {[%emt 00:00:27]} Rb8 {[%clk 00:21:33]} {[%emt 00:00:24]}
28. Rb1 {[%clk 00:23:20]} {[%emt 00:00:07]} a6 {[%clk 00:14:13]} {[%emt
00:07:51]} 29. Rb4 {[%clk 00:21:39]} {[%emt 00:02:09]} Rd5 {[%clk 00:11:39]}
{[%emt 00:03:00]} 30. Rc7 {[%clk 00:21:21]} {[%emt 00:00:52]} Rdd8 {[%clk
00:08:17]} {[%emt 00:03:48]} 31. Bxb5 {[%clk 00:19:16]} {[%emt 00:02:39]} axb5
{[%clk 00:08:33]} {[%emt 00:00:15]} 32. Rxb5 {[%clk 00:19:45]} {[%emt
00:00:01]} Bd5 {[%clk 00:08:43]} {[%emt 00:00:21]} 33. Rb4 {[%clk 00:19:44]}
{[%emt 00:00:30]} Rxb4 {[%clk 00:07:27]} {[%emt 00:01:47]} 34. cxb4 {[%clk
00:20:07]} {[%emt 00:00:06]} Ra8 {[%clk 00:07:31]} {[%emt 00:00:25]} 35. b5
{[%clk 00:19:42]} {[%emt 00:00:56]} Rxa2 {[%clk 00:07:50]} {[%emt 00:00:11]} 36.
b6 {[%clk 00:20:04]} {[%emt 00:00:08]} Rb2 {[%clk 00:08:12]} {[%emt 00:00:08]}
37. Rc8+ {[%clk 00:20:13]} {[%emt 00:00:22]} Kg7 {[%clk 00:08:36]} {[%emt
00:00:06]} 38. Rb8 {[%clk 00:20:25]} {[%emt 00:00:17]} Rxc2 {[%clk 00:08:48]}
{[%emt 00:00:19]} 39. Kf1 {[%clk 00:20:37]} {[%emt 00:00:11]} Rb2 {[%clk
00:08:56]} {[%emt 00:00:28]} 40. Ke1 {[%clk 00:20:58]} {[%emt 00:00:05]} c3
{[%clk 00:08:58]} {[%emt 00:00:32]} 41. Kd1 {[%clk 00:21:06]} {[%emt 00:00:21]}
Bb3+ {[%clk 00:08:22]} {[%emt 00:01:04]} 42. Ke1 {[%clk 00:20:14]} {[%emt
00:01:17]} c2 {[%clk 00:08:28]} {[%emt 00:00:33]} 43. Kd2 {[%clk 00:20:37]}
{[%emt 00:00:07]} Rb1 {[%clk 00:08:47]} {[%emt 00:00:11]} 44. Rc8 {[%clk
00:21:03]} {[%emt 00:00:03]} Bd5 {[%clk 00:08:24]} {[%emt 00:00:53]} 45. Rxc2
{[%clk 00:21:03]} {[%emt 00:00:31]} Rxb6 {[%clk 00:08:50]} {[%emt 00:00:04]} 46.
Rc7 {[%clk 00:21:12]} {[%emt 00:00:20]} Rb2+ {[%clk 00:08:57]} {[%emt
00:00:23]} 47. Rc2 {[%clk 00:21:38]} {[%emt 00:00:04]} Rxc2+ {[%clk 00:09:21]}
{[%emt 00:00:07]} 48. Kxc2 {[%clk 00:22:02]} {[%emt 00:00:05]} e5 {[%clk
00:09:45]} {[%emt 00:00:06]} 49. Kd3 {[%clk 00:22:30]} {[%emt 00:00:02]} f5
{[%clk 00:10:03]} {[%emt 00:00:12]} 50. Ke3 {[%clk 00:22:57]} {[%emt 00:00:03]}
g5 {[%clk 00:10:17]} {[%emt 00:00:17]} 51. h3 {[%clk 00:22:48]} {[%emt
00:00:38]} f4+ {[%clk 00:10:38]} {[%emt 00:00:09]} 52. gxf4 {[%clk 00:23:13]}
{[%emt 00:00:05]} gxf4+ {[%clk 00:11:01]} {[%emt 00:00:07]} 53. Kf2 {[%clk
00:23:38]} {[%emt 00:00:05]} e4 {[%clk 00:11:23]} {[%emt 00:00:08]} 0-1